[Event "FIDE World School-ch G-13 2025"]
[Site "Vrnjacka Banja"]
[Date "2025.03.22"]
[Round "3.1"]
[White "Amanzhol, Khanzada"]
[Black "Enkhzaya, Zagas-Erdene"]
[Result "1-0"]
[Annotator "NA RC"]
[ECO "B53"]
[WhiteElo "1908"]
[BlackElo "1801"]
[PlyCount "51"]
[EventDate "2025.03.19"]
[EventType "swiss"]
[EventCountry "SRB"]
[SourceTitle "playchess.com"]
[Source "ChessBase"]
[SourceQuality "1"]
[TimeControl "5400+30"]

1. e4 {[%emt 0:00:28]} c5 {[%emt 0:00:06]} 2. Nf3 {[%emt 0:00:08]} d6 {[%emt 0:00:03]} 3. d4 {[%emt 0:00:08]} cxd4 {[%emt 0:00:03]} 4. Qxd4 {[%emt 0:00:12]} Bd7 {[%emt 0:10:30]} 5. c4 {[%emt 0:02:53]} Nc6 {[%emt 0:00:02]} 6. Qd2 {[%emt 0:00:26]} Nf6 {[%emt 0:01:42]} 7. Nc3 {[%emt 0:00:09]} g6 {[%emt 0:01:48]} 8. b3 {[%emt 0:02:31]} Bg7 {[%emt 0:00:36]} 9. Bb2 {[%emt 1:28:05]} O-O {[%emt 0:04:35]} 10. h3 {[%emt 0:00:00]} a5 {[%emt 0:08:47]} 11. Bd3 {[%emt 0:00:00]} Nb4 {[%emt 0:00:16]} 12. Bb1 {[%emt 0:00:00]} Bc6 {[%emt 0:17:37]} 13. O-O {[%emt 0:00:00]} Nd7 {[%emt 0:00:13]} 14. Nd5 {[%emt 0:00:00]} Bxd5 {[%emt 0:01:20]} 15. exd5 {[%emt 0:00:00]} Nc5 {[%emt 0:03:53]} 16. Bxg7 {[%emt 0:00:00]} Kxg7 {[%emt 0:00:01]} 17. a3 {[%emt 0:00:00]} Nba6 {[%emt 0:00:27]} 18. Nd4 {[%emt 0:00:00]} Qb6 {[%emt 0:06:00]} 19. Nf5+ {[%emt 0:00:00]} gxf5 {[%emt 0:00:55]} 20. Qg5+ {[%emt 0:00:00]} Kh8 {[%emt 0:00:04]} 21. Qxf5 {[%emt 0:00:00]} Kg7 {[%emt 0:03:15]} 22. Qxh7+ {[%emt 0:00:00]} Kf6 {[%emt 0:00:05]} 23. Qf5+ {[%emt 0:00:00]} Kg7 {[%emt 0:00:05]} 24. Qg5+ {[%emt 0:00:00]} Kh8 {[%emt 0:00:06]} 25. Qh6+ {[%emt 0:00:00]} Kg8 {[%emt 0:00:06]} 26. Qh7# {[%emt 0:00:00]} 1-0

[Event "FIDE World School-ch G-13 2025"]
[Site "Vrnjacka Banja"]
[Date "2025.03.22"]
[Round "3.2"]
[White "Shabanova, Mariya"]
[Black "Begmuratova, Sarvinoz"]
[Result "0-1"]
[Annotator "NA RC"]
[ECO "B13"]
[WhiteElo "1467"]
[BlackElo "1808"]
[PlyCount "70"]
[EventDate "2025.03.19"]
[EventType "swiss"]
[EventCountry "SRB"]
[SourceTitle "playchess.com"]
[Source "ChessBase"]
[SourceQuality "1"]
[TimeControl "5400+30"]

1. e4 {[%emt 0:00:08]} c6 {[%emt 0:00:08]} 2. d4 {[%emt 0:00:16]} d5 {[%emt 0:00:05]} 3. exd5 {[%emt 0:00:41]} cxd5 {[%emt 0:00:06]} 4. Bd3 {[%emt 0:00:28]} Nf6 {[%emt 0:00:06]} 5. h3 {[%emt 0:00:34]} Nc6 {[%emt 0:00:39]} 6. c3 {[%emt 0:00:21]} e5 {[%emt 0:00:04]} 7. dxe5 {[%emt 0:01:52]} Nxe5 {[%emt 0:00:05]} 8. Nf3 {[%emt 0:01:11]} Nxd3+ {[%emt 0:00:06]} 9. Qxd3 {[%emt 0:00:20]} Bd6 {[%emt 0:00:07]} 10. O-O {[%emt 0:01:46]} O-O {[%emt 0:00:05]} 11. Be3 {[%emt 0:07:34]} Ne4 {[%emt 0:03:43]} 12. Nbd2 {[%emt 0:11:01]} Bf5 {[%emt 0:04:38]} 13. Qe2 {[%emt 0:02:27]} Bc7 {[%emt 0:03:05]} 14. Rfd1 {[%emt 0:16:18]} Qf6 {[%emt 0:06:36]} 15. Bd4 {[%emt 0:07:29]} Qe7 {[%emt 0:06:47]} 16. Qe3 {[%emt 0:09:51]} b6 {[%emt 0:10:40]} 17. Re1 {[%emt 0:03:19]} Rae8 {[%emt 0:05:26]} 18. c4 {[%emt 0:10:08]} Qd6 {[%emt 0:10:48]} 19. Qe2 {[%emt 0:05:20]} Nxd2 {[%emt 0:01:42]} 20. Qxd2 {[%emt 0:00:30]} Be4 {[%emt 0:00:51]} 21. Be5 {[%emt 0:00:20]} Rxe5 {[%emt 0:00:50]} 22. Nxe5 {[%emt 0:00:06]} Qxe5 {[%emt 0:00:05]} 23. g3 {[%emt 0:03:05]} Qh5 {[%emt 0:00:59]} 24. h4 {[%emt 0:04:02]} Qf3 {[%emt 0:00:24]} 25. Kf1 {[%emt 0:03:04]} Bxg3 {[%emt 0:01:04]} 26. Rac1 {[%emt 0:02:00]} Qg2+ {[%emt 0:01:25]} 27. Ke2 {[%emt 0:00:29]} Qxf2+ {[%emt 0:00:22]} 28. Kd1 {[%emt 0:00:26]} Qxe1+ {[%emt 0:00:27]} 29. Qxe1 {[%emt 0:00:06]} Bxe1 {[%emt 0:00:05]} 30. Kxe1 {[%emt 0:00:09]} dxc4 {[%emt 0:00:10]} 31. Rxc4 {[%emt 0:00:10]} Bd5 {[%emt 0:00:05]} 32. Ra4 {[%emt 0:00:08]} a5 {[%emt 0:00:05]} 33. a3 {[%emt 0:00:24]} Re8+ {[%emt 0:00:05]} 34. Kf2 {[%emt 0:00:06]} Re4 {[%emt 0:00:15]} 35. b4 {[%emt 0:00:24]} Bb3 {[%emt 0:00:18]} 0-1

[Event "FIDE World School-ch G-13 2025"]
[Site "Vrnjacka Banja"]
[Date "2025.03.22"]
[Round "3.3"]
[White "Leca Andrei, Anastasia"]
[Black "Tereshchenko, Eliza"]
[Result "1-0"]
[Annotator "NA RC"]
[ECO "D00"]
[WhiteElo "1805"]
[BlackElo "1751"]
[PlyCount "135"]
[EventDate "2025.03.19"]
[EventType "swiss"]
[EventCountry "SRB"]
[SourceTitle "playchess.com"]
[Source "ChessBase"]
[SourceQuality "1"]
[TimeControl "5400+30"]

1. d4 {[%emt 0:00:02]} d5 {[%emt 0:00:15]} 2. Bg5 {[%emt 0:00:08]} Nf6 {[%emt 0:00:06]} 3. e3 {[%emt 0:00:02]} c6 {[%emt 0:02:46]} 4. Bd3 {[%emt 0:01:52]} Bg4 {[%emt 0:00:38]} 5. Qc1 {[%emt 0:03:45]} e6 {[%emt 0:02:28]} 6. f4 {[%emt 0:01:28]} Nbd7 {[%emt 0:03:34]} 7. Nd2 {[%emt 0:00:47]} Be7 {[%emt 0:02:27]} 8. Ngf3 {[%emt 0:00:27]} Bh5 {[%emt 0:09:16]} 9. O-O {[%emt 0:05:03]} Bg6 {[%emt 0:07:26]} 10. Qe1 {[%emt 0:14:04]} Ne4 {[%emt 0:11:15]} 11. Bxe7 {[%emt 0:04:51]} Qxe7 {[%emt 0:00:12]} 12. Bxe4 {[%emt 0:00:37]} dxe4 {[%emt 0:08:49]} 13. Ne5 {[%emt 0:01:31]} Nxe5 {[%emt 0:08:54]} 14. fxe5 {[%emt 0:00:21]} Qb4 {[%emt 0:00:57]} 15. c3 {[%emt 0:06:57]} Qb5 {[%emt 0:01:38]} 16. b3 {[%emt 0:00:12]} O-O {[%emt 0:04:16]} 17. c4 {[%emt 0:00:40]} Qa5 {[%emt 0:01:57]} 18. Rf4 {[%emt 0:00:28]} f5 {[%emt 0:08:20]} 19. exf6 {[%emt 0:00:34]} Rxf6 {[%emt 0:06:39]} 20. Nxe4 {[%emt 0:13:33]} Qxe1+ {[%emt 0:00:06]} 21. Rxe1 {[%emt 0:00:03]} Rxf4 {[%emt 0:01:37]} 22. exf4 {[%emt 0:00:04]} Rd8 {[%emt 0:00:31]} 23. Nc5 {[%emt 0:01:14]} Bf5 {[%emt 0:04:01]} 24. Nxe6 {[%emt 0:02:00]} Bxe6 {[%emt 0:00:26]} 25. Rxe6 {[%emt 0:00:01]} Rxd4 {[%emt 0:00:17]} 26. g3 {[%emt 0:00:52]} Kf7 {[%emt 0:01:04]} 27. Re2 {[%emt 0:00:05]} b5 {[%emt 0:01:36]} 28. cxb5 {[%emt 0:00:19]} cxb5 {[%emt 0:00:01]} 29. Re5 {[%emt 0:01:39]} Rd2 {[%emt 0:01:31]} 30. a4 {[%emt 0:01:00]} bxa4 {[%emt 0:01:58]} 31. bxa4 {[%emt 0:00:01]} Rd4 {[%emt 0:02:44]} 32. Ra5 {[%emt 0:00:07]} Rd7 {[%emt 0:00:08]} 33. Kg2 {[%emt 0:00:02]} Ke6 {[%emt 0:01:11]} 34. Kf3 {[%emt 0:00:21]} Kd6 {[%emt 0:01:23]} 35. Ke4 {[%emt 0:01:42]} Kc6 {[%emt 0:00:35]} 36. h4 {[%emt 0:00:39]} Rb7 {[%emt 0:03:05]} 37. Kf5 {[%emt 0:02:29]} Kd6 {[%emt 0:02:17]} 38. g4 {[%emt 0:00:15]} Rf7+ {[%emt 0:00:46]} 39. Ke4 {[%emt 0:00:10]} Rb7 {[%emt 0:00:28]} 40. Kf5 {[%emt 0:40:05]} Rf7+ {[%emt 0:01:09]} 41. Kg5 {[%emt 0:00:00]} Rb7 {[%emt 0:01:25]} 42. f5 {[%emt 0:00:00]} Ke7 {[%emt 0:00:33]} 43. Ra6 {[%emt 0:00:00]} Kf7 {[%emt 0:00:17]} 44. Rc6 {[%emt 0:00:00]} Rd7 {[%emt 0:00:46]} 45. Rc4 {[%emt 0:00:00]} Rb7 {[%emt 0:00:33]} 46. Kf4 {[%emt 0:00:00]} Re7 {[%emt 0:00:36]} 47. g5 {[%emt 0:00:00]} Rb7 {[%emt 0:00:31]} 48. Ke5 {[%emt 0:00:00]} Re7+ {[%emt 0:00:30]} 49. Kd6 {[%emt 0:00:00]} Re1 {[%emt 0:00:27]} 50. Rc7+ {[%emt 0:00:00]} Kf8 {[%emt 0:00:01]} 51. Rxa7 {[%emt 0:00:00]} Rd1+ {[%emt 0:00:12]} 52. Ke5 {[%emt 0:00:00]} Re1+ {[%emt 0:00:08]} 53. Kd4 {[%emt 0:00:00]} Rh1 {[%emt 0:00:25]} 54. a5 {[%emt 0:00:00]} Rxh4+ {[%emt 0:00:07]} 55. Ke5 {[%emt 0:00:00]} Rg4 {[%emt 0:02:09]} 56. a6 {[%emt 0:00:00]} Rg1 {[%emt 0:00:25]} 57. Rb7 {[%emt 0:00:00]} Re1+ {[%emt 0:00:36]} 58. Kf4 {[%emt 0:00:00]} Ra1 {[%emt 0:00:28]} 59. a7 {[%emt 0:00:00]} Ra4+ {[%emt 0:00:18]} 60. Ke5 {[%emt 0:00:00]} g6 {[%emt 0:00:36]} 61. Rb8+ {[%emt 0:00:00]} Kg7 {[%emt 0:00:13]} 62. f6+ {[%emt 0:00:00]} Kf7 {[%emt 0:00:06]} 63. a8=Q {[%emt 0:00:00]} Rxa8 {[%emt 0:00:18]} 64. Rxa8 {[%emt 0:00:00]} h6 {[%emt 0:00:03]} 65. Ra7+ {[%emt 0:00:00]} Kg8 {[%emt 0:00:12]} 66. f7+ {[%emt 0:00:00]} Kf8 {[%emt 0:00:12]} 67. Kf6 {[%emt 0:00:00]} hxg5 {[%emt 0:00:04]} 68. Ra8# {[%emt 0:00:00]} 1-0

[Event "FIDE World School-ch G-13 2025"]
[Site "Vrnjacka Banja"]
[Date "2025.03.22"]
[Round "3.4"]
[White "Omirserik, Alima"]
[Black "Sonmez, Zeynep"]
[Result "1-0"]
[Annotator "NA RC"]
[ECO "B27"]
[WhiteElo "1814"]
[BlackElo "1526"]
[PlyCount "139"]
[EventDate "2025.03.19"]
[EventType "swiss"]
[EventCountry "SRB"]
[SourceTitle "playchess.com"]
[Source "ChessBase"]
[SourceQuality "1"]
[TimeControl "5400+30"]

1. e4 {[%emt 0:03:09]} c5 {[%emt 0:00:14]} 2. Nf3 {[%emt 0:00:34]} g6 {[%emt 0:00:27]} 3. c3 {[%emt 0:00:30]} d5 {[%emt 0:01:03]} 4. exd5 {[%emt 0:01:39]} Qxd5 {[%emt 0:00:49]} 5. Be2 {[%emt 0:00:47]} Bg7 {[%emt 0:01:44]} 6. O-O {[%emt 0:02:30]} Nf6 {[%emt 0:02:13]} 7. d4 {[%emt 0:02:38]} Nc6 {[%emt 0:09:18]} 8. Na3 {[%emt 0:09:59]} Bg4 {[%emt 0:13:03]} 9. h3 {[%emt 0:04:00]} Bf5 {[%emt 0:04:38]} 10. Bc4 {[%emt 0:01:12]} Qd7 {[%emt 0:04:46]} 11. d5 {[%emt 0:00:28]} O-O-O {[%emt 0:08:58]} 12. Be3 {[%emt 0:05:24]} Nxd5 {[%emt 0:04:13]} 13. Bxc5 {[%emt 0:01:20]} h5 {[%emt 0:07:05]} 14. Nd4 {[%emt 0:10:57]} Nc7 {[%emt 0:09:18]} 15. Nab5 {[%emt 0:12:01]} b6 {[%emt 0:09:09]} 16. Nxc6 {[%emt 0:01:00]} Qxd1 {[%emt 0:05:34]} 17. Raxd1 {[%emt 0:00:57]} Rxd1 {[%emt 0:00:25]} 18. Nxe7+ {[%emt 0:00:50]} Kb7 {[%emt 0:01:43]} 19. Rxd1 {[%emt 0:00:36]} Nxb5 {[%emt 0:00:35]} 20. Bxb5 {[%emt 0:00:42]} bxc5 {[%emt 0:00:09]} 21. Nxf5 {[%emt 0:39:47]} gxf5 {[%emt 0:00:16]} 22. Rd7+ {[%emt 0:00:00]} Kb6 {[%emt 0:00:46]} 23. Bc4 {[%emt 0:00:00]} f4 {[%emt 0:05:27]} 24. Bxf7 {[%emt 0:00:00]} h4 {[%emt 0:03:03]} 25. Bd5 {[%emt 0:00:00]} Be5 {[%emt 0:01:57]} 26. Rb7+ {[%emt 0:00:00]} Ka6 {[%emt 0:00:14]} 27. Re7 {[%emt 0:00:00]} Rh5 {[%emt 0:01:32]} 28. Re6+ {[%emt 0:00:00]} Kb5 {[%emt 0:01:22]} 29. Bf3 {[%emt 0:00:00]} Rg5 {[%emt 0:00:33]} 30. Be2+ {[%emt 0:00:00]} c4 {[%emt 0:00:12]} 31. Rh6 {[%emt 0:00:00]} a5 {[%emt 0:03:23]} 32. Rxh4 {[%emt 0:00:00]} a4 {[%emt 0:00:35]} 33. b3 {[%emt 0:00:00]} axb3 {[%emt 0:01:43]} 34. axb3 {[%emt 0:00:00]} Kc5 {[%emt 0:00:29]} 35. bxc4 {[%emt 0:00:00]} Rf5 {[%emt 0:00:29]} 36. Bd3 {[%emt 0:00:00]} Rg5 {[%emt 0:00:13]} 37. Kf1 {[%emt 0:00:00]} Kb6 {[%emt 0:00:49]} 38. Rh6+ {[%emt 0:00:00]} Ka5 {[%emt 0:00:30]} 39. h4 {[%emt 0:00:00]} Rg7 {[%emt 0:00:15]} 40. Rh5 {[%emt 0:00:00]} Re7 {[%emt 0:00:24]} 41. g4 {[%emt 0:00:00]} Kb6 {[%emt 0:00:50]} 42. Rh7 {[%emt 0:00:00]} Re8 {[%emt 0:00:30]} 43. Rf7 {[%emt 0:00:00]} Rg8 {[%emt 0:00:32]} 44. f3 {[%emt 0:00:00]} Ra8 {[%emt 0:00:27]} 45. Rf5 {[%emt 0:00:00]} Ra1+ {[%emt 0:00:19]} 46. Kf2 {[%emt 0:00:00]} Bxc3 {[%emt 0:00:43]} 47. c5+ {[%emt 0:02:32]} Kc6 {[%emt 0:00:28]} 48. Be4+ {[%emt 0:00:09]} Kb5 {[%emt 0:00:29]} 49. c6+ {[%emt 0:00:40]} Kb6 {[%emt 0:00:05]} 50. Rxf4 {[%emt 0:00:48]} Ra2+ {[%emt 0:00:11]} 51. Kf1 {[%emt 0:00:23]} Ra1+ {[%emt 0:00:33]} 52. Ke2 {[%emt 0:00:26]} Ra2+ {[%emt 0:00:37]} 53. Kd3 {[%emt 0:00:19]} Be5 {[%emt 0:00:59]} 54. Rf7 {[%emt 0:00:25]} Ra3+ {[%emt 0:00:38]} 55. Kc4 {[%emt 0:00:32]} Ra4+ {[%emt 0:00:31]} 56. Kd5 {[%emt 0:00:18]} Ra5+ {[%emt 0:00:27]} 57. Ke6 {[%emt 0:00:07]} Bg3 {[%emt 0:00:31]} 58. Rb7+ {[%emt 0:00:25]} Kc5 {[%emt 0:00:31]} 59. c7 {[%emt 0:00:19]} Ra6+ {[%emt 0:00:18]} 60. Kf7 {[%emt 0:00:25]} Ra8 {[%emt 0:00:40]} 61. Rb5+ {[%emt 0:01:14]} Kxb5 {[%emt 0:00:06]} 62. Bxa8 {[%emt 0:00:03]} Bxc7 {[%emt 0:00:07]} 63. h5 {[%emt 0:00:06]} Bf4 {[%emt 0:00:13]} 64. Kg6 {[%emt 0:00:20]} Kb6 {[%emt 0:00:10]} 65. h6 {[%emt 0:00:05]} Be5 {[%emt 0:00:15]} 66. h7 {[%emt 0:00:08]} Kc7 {[%emt 0:00:03]} 67. Kf7 {[%emt 0:00:07]} Kd7 {[%emt 0:00:14]} 68. g5 {[%emt 0:00:07]} Bh8 {[%emt 0:00:16]} 69. g6 {[%emt 0:00:06]} Be5 {[%emt 0:00:04]} 70. g7 {[%emt 0:00:06]} 1-0

[Event "FIDE World School-ch G-13 2025"]
[Site "Vrnjacka Banja"]
[Date "2025.03.22"]
[Round "3.5"]
[White "Lipartia, Nino"]
[Black "Abylaykyzy, Bibisara"]
[Result "0-1"]
[Annotator "NA RC"]
[ECO "B99"]
[WhiteElo "1654"]
[BlackElo "1651"]
[PlyCount "78"]
[EventDate "2025.03.19"]
[EventType "swiss"]
[EventCountry "SRB"]
[SourceTitle "playchess.com"]
[Source "ChessBase"]
[SourceQuality "1"]
[TimeControl "5400+30"]

1. e4 {[%emt 0:01:01]} c5 {[%emt 0:00:04]} 2. Nf3 {[%emt 0:00:04]} d6 {[%emt 0:00:03]} 3. d4 {[%emt 0:00:08]} cxd4 {[%emt 0:00:04]} 4. Nxd4 {[%emt 0:00:04]} Nf6 {[%emt 0:00:03]} 5. Nc3 {[%emt 0:00:05]} a6 {[%emt 0:00:03]} 6. Bg5 {[%emt 0:00:06]} e6 {[%emt 0:00:11]} 7. f4 {[%emt 0:00:34]} Nbd7 {[%emt 0:00:07]} 8. Qf3 {[%emt 0:00:12]} Qc7 {[%emt 0:00:59]} 9. O-O-O {[%emt 0:00:29]} Be7 {[%emt 0:01:54]} 10. g4 {[%emt 0:01:00]} b5 {[%emt 0:00:33]} 11. Bxf6 {[%emt 0:00:34]} gxf6 {[%emt 0:00:29]} 12. h4 {[%emt 0:18:40]} Bb7 {[%emt 0:01:32]} 13. g5 {[%emt 0:05:16]} b4 {[%emt 0:05:55]} 14. Nce2 {[%emt 0:02:25]} Rc8 {[%emt 0:02:06]} 15. Rd2 {[%emt 0:01:56]} Nc5 {[%emt 0:02:43]} 16. Ng3 {[%emt 0:00:44]} f5 {[%emt 0:01:18]} 17. Bd3 {[%emt 0:06:01]} Qa5 {[%emt 0:05:10]} 18. Kd1 {[%emt 0:03:37]} Qxa2 {[%emt 0:04:08]} 19. Ndxf5 {[%emt 0:06:45]} Nxd3 {[%emt 0:06:55]} 20. Nxe7 {[%emt 0:04:38]} Nxb2+ {[%emt 0:00:52]} 21. Ke2 {[%emt 0:00:19]} Kxe7 {[%emt 0:00:13]} 22. f5 {[%emt 0:00:54]} Rhf8 {[%emt 0:04:18]} 23. Qf4 {[%emt 0:06:55]} Nc4 {[%emt 0:00:35]} 24. Rhd1 {[%emt 0:00:57]} Nxd2 {[%emt 0:00:52]} 25. Rxd2 {[%emt 0:00:10]} Qc4+ {[%emt 0:00:04]} 26. Kf2 {[%emt 0:00:14]} Qc5+ {[%emt 0:00:49]} 27. Kg2 {[%emt 0:00:28]} Qe5 {[%emt 0:01:10]} 28. f6+ {[%emt 0:01:41]} Ke8 {[%emt 0:00:30]} 29. Qe3 {[%emt 0:04:28]} Rc3 {[%emt 0:01:41]} 30. Qf2 {[%emt 0:00:42]} Bxe4+ {[%emt 0:01:58]} 31. Nxe4 {[%emt 0:00:44]} Qxe4+ {[%emt 0:00:46]} 32. Kh2 {[%emt 0:00:08]} Rf3 {[%emt 0:01:31]} 33. Qa7 {[%emt 0:01:05]} Qxh4+ {[%emt 0:01:19]} 34. Kg1 {[%emt 0:00:50]} Qxg5+ {[%emt 0:00:44]} 35. Rg2 {[%emt 0:00:33]} Qc1+ {[%emt 0:01:07]} 36. Kh2 {[%emt 0:00:06]} Qf4+ {[%emt 0:00:04]} 37. Kh1 {[%emt 0:00:17]} Rf1+ {[%emt 0:00:07]} 38. Rg1 {[%emt 0:00:13]} Qf3+ {[%emt 0:00:19]} 39. Kh2 {[%emt 0:00:06]} Rf2+ {[%emt 0:00:17]} 0-1

[Event "FIDE World School-ch G-13 2025"]
[Site "Vrnjacka Banja"]
[Date "2025.03.22"]
[Round "3.6"]
[White "Mamakova, Aknur"]
[Black "Xu, Luna Yuexiu"]
[Result "1/2-1/2"]
[Annotator "NA RC"]
[ECO "D67"]
[WhiteElo "1797"]
[BlackElo "1901"]
[PlyCount "155"]
[EventDate "2025.03.19"]
[EventType "swiss"]
[EventCountry "SRB"]
[SourceTitle "playchess.com"]
[Source "ChessBase"]
[SourceQuality "1"]
[TimeControl "5400+30"]

1. d4 {[%emt 0:00:16]} d5 {[%emt 0:00:38]} 2. c4 {[%emt 0:00:09]} e6 {[%emt 0:00:30]} 3. Nc3 {[%emt 0:00:19]} Nf6 {[%emt 0:00:29]} 4. Nf3 {[%emt 0:00:09]} c6 {[%emt 0:00:41]} 5. Bg5 {[%emt 0:00:46]} Be7 {[%emt 0:00:41]} 6. e3 {[%emt 0:01:09]} Nbd7 {[%emt 0:00:55]} 7. Rc1 {[%emt 0:00:15]} O-O {[%emt 0:01:07]} 8. Bd3 {[%emt 0:00:54]} dxc4 {[%emt 0:01:35]} 9. Bxc4 {[%emt 0:00:09]} Nd5 {[%emt 0:01:10]} 10. Bxe7 {[%emt 0:01:50]} Qxe7 {[%emt 0:00:42]} 11. O-O {[%emt 0:01:56]} Nxc3 {[%emt 0:09:16]} 12. bxc3 {[%emt 0:03:40]} Nf6 {[%emt 0:01:55]} 13. Ne5 {[%emt 0:04:10]} Bd7 {[%emt 0:02:51]} 14. Qe2 {[%emt 0:02:28]} Rfd8 {[%emt 0:03:17]} 15. Rfd1 {[%emt 0:02:00]} Be8 {[%emt 0:01:54]} 16. Bb3 {[%emt 0:05:29]} c5 {[%emt 0:05:28]} 17. c4 {[%emt 0:03:35]} a6 {[%emt 0:03:57]} 18. Qf3 {[%emt 0:05:21]} Rac8 {[%emt 0:02:28]} 19. h3 {[%emt 0:07:02]} b5 {[%emt 0:03:45]} 20. dxc5 {[%emt 0:05:56]} Qxc5 {[%emt 0:03:15]} 21. Ng4 {[%emt 0:07:22]} Nxg4 {[%emt 0:00:44]} 22. Qxg4 {[%emt 0:00:27]} Rxd1+ {[%emt 0:00:59]} 23. Qxd1 {[%emt 0:00:23]} a5 {[%emt 0:01:14]} 24. Rc2 {[%emt 0:02:16]} b4 {[%emt 0:03:33]} 25. Rd2 {[%emt 0:00:41]} Qc7 {[%emt 0:06:04]} 26. Rd4 {[%emt 0:03:29]} h6 {[%emt 0:03:50]} 27. h4 {[%emt 0:08:51]} e5 {[%emt 0:01:17]} 28. Rd6 {[%emt 0:00:56]} a4 {[%emt 0:01:00]} 29. Bc2 {[%emt 0:00:21]} Qxc4 {[%emt 0:00:55]} 30. Bxa4 {[%emt 0:03:16]} Bxa4 {[%emt 0:02:22]} 31. Qxa4 {[%emt 0:00:18]} Qxh4 {[%emt 0:00:34]} 32. Rd1 {[%emt 0:00:42]} Qc4 {[%emt 0:04:45]} 33. Rb1 {[%emt 0:02:50]} Qe2 {[%emt 0:01:33]} 34. Qxb4 {[%emt 0:02:21]} Qxa2 {[%emt 0:00:28]} 35. Rd1 {[%emt 0:01:03]} Qe6 {[%emt 0:00:23]} 36. Qb7 {[%emt 0:01:39]} e4 {[%emt 0:03:31]} 37. Qb1 {[%emt 0:01:36]} Rc5 {[%emt 0:01:00]} 38. Rd8+ {[%emt 0:01:00]} Kh7 {[%emt 0:00:14]} 39. Rd4 {[%emt 0:00:47]} f5 {[%emt 0:00:55]} 40. Rd1 {[%emt 0:02:27]} Rd5 {[%emt 0:01:33]} 41. Rxd5 {[%emt 0:01:17]} Qxd5 {[%emt 0:00:09]} 42. Qa1 {[%emt 0:00:17]} Qd6 {[%emt 0:00:56]} 43. Qa4 {[%emt 0:00:54]} Qd2 {[%emt 0:00:45]} 44. Qa1 {[%emt 0:00:23]} Qe2 {[%emt 0:00:34]} 45. Qb1 {[%emt 0:00:21]} Qg4 {[%emt 0:00:24]} 46. Qc2 {[%emt 0:00:24]} h5 {[%emt 0:00:47]} 47. Kh2 {[%emt 0:01:22]} h4 {[%emt 0:00:40]} 48. Qd2 {[%emt 0:02:55]} h3 {[%emt 0:00:35]} 49. gxh3 {[%emt 0:00:36]} Qf3 {[%emt 0:00:08]} 50. Qe1 {[%emt 0:00:50]} f4 {[%emt 0:00:40]} 51. exf4 {[%emt 0:00:39]} Qxf4+ {[%emt 0:00:32]} 52. Kg2 {[%emt 0:00:13]} Qf3+ {[%emt 0:01:00]} 53. Kh2 {[%emt 0:00:06]} Kh6 {[%emt 0:00:33]} 54. Qg1 {[%emt 0:00:38]} g5 {[%emt 0:00:43]} 55. Qg3 {[%emt 0:00:37]} Qf4 {[%emt 0:01:05]} 56. Kg2 {[%emt 0:00:19]} Kh5 {[%emt 0:00:38]} 57. Qc3 {[%emt 0:00:26]} Qf3+ {[%emt 0:00:52]} 58. Qxf3+ {[%emt 0:00:09]} exf3+ {[%emt 0:00:08]} 59. Kxf3 {[%emt 0:00:06]} Kh4 {[%emt 0:00:09]} 60. Kg2 {[%emt 0:00:18]} g4 {[%emt 0:00:08]} 61. hxg4 {[%emt 0:00:58]} Kxg4 {[%emt 0:00:06]} 62. f3+ {[%emt 0:00:09]} Kf4 {[%emt 0:00:07]} 63. Kf2 {[%emt 0:00:04]} Kf5 {[%emt 0:00:14]} 64. Ke3 {[%emt 0:00:08]} Ke5 {[%emt 0:00:06]} 65. f4+ {[%emt 0:00:09]} Kf5 {[%emt 0:00:09]} 66. Kf3 {[%emt 0:00:04]} Kf6 {[%emt 0:00:10]} 67. Kg4 {[%emt 0:00:05]} Kg6 {[%emt 0:00:08]} 68. f5+ {[%emt 0:00:09]} Kf6 {[%emt 0:00:12]} 69. Kf4 {[%emt 0:00:05]} Kf7 {[%emt 0:00:10]} 70. Kg5 {[%emt 0:00:04]} Kg7 {[%emt 0:00:10]} 71. f6+ {[%emt 0:00:04]} Kf7 {[%emt 0:00:22]} 72. Kf5 {[%emt 0:00:12]} Kf8 {[%emt 0:00:10]} 73. Kg6 {[%emt 0:00:05]} Kg8 {[%emt 0:00:09]} 74. Kf5 {[%emt 0:00:28]} Kf7 {[%emt 0:00:31]} 75. Ke5 {[%emt 0:00:10]} Kf8 {[%emt 0:00:23]} 76. Ke6 {[%emt 0:00:19]} Ke8 {[%emt 0:00:31]} 77. f7+ {[%emt 0:00:16]} Kf8 {[%emt 0:00:33]} 78. Kf6 {[%emt 0:00:08]} 1/2-1/2